Cogmind - Beta 9.6 *** ADVENTURER MODE // 2020.04.27 @ 20:32:09 Player: BinarySpace Result: Destroyed by P-80 Master with Gamma Rifle Performance ------------- Evolutions (7) 3500 Regions Visited (14) 2800 Robots Destroyed (247) 1235 Value Destroyed (8713) 8713 Prototype IDs (15) 300 Alien Tech Used (0) 0 Bonus (1930) 1930 TOTAL SCORE: 18478 Bonus ------- High Alert Combat Kills 888 Follower Combat Kills 335 Met Warlord at Base 500 MAIN.C Attacked Warlord 500 Friendly Fire -293 Cogmind --------- Core Integrity 0/1300 Matter 105/300 Energy 90/100 System Corruption 3% Temperature Cool (0) Movement Core (50) Location -3/Research Parts ------- > --- POWER (2) -------- (None) > --- PROPULSION (2) --- (None) > --- UTILITY (13) ----- Advanced Targeting Computer Improved System Shield > --- WEAPON (4) ------- (None) > --- INVENTORY (4) ---- Improved Heavy Siege Treads Peak State ------------ > --- POWER ------------ Light Nuclear Core Micro Fission Core > --- PROPULSION ------- Spiked Medium Treads Armored Medium Treads > --- UTILITY ---------- Improved Cooling System Improved Cooling System Large Storage Unit Large Storage Unit High-capacity Storage Unit Advanced Signal Interpreter Advanced Targeting Computer Advanced Targeting Computer Improved Armor Integrity Analyzer Improved Utility Shielding Improved Thermal Shield > --- WEAPON ----------- Antimatter Cannon Antimatter Cannon Heavy Autocannon > --- INVENTORY -------- Armored Medium Treads Large Storage Unit Large Storage Unit Matter Compressor Improved Utility Shielding Hacking Suite Hacking Suite Vortex Rifle Vortex Rifle Hypervelocity Mass Driver Hypervelocity Mass Driver Hypervelocity Mass Driver Hypervelocity Mass Driver Long-range Missile Launcher Long-range Missile Launcher Long-range Missile Launcher Scatter Rocket Array Scatter Rocket Array Scatter Rocket Array Axe [Rating: 92] Favorites ----------- Power Heavy Ion Engine Engine Heavy Ion Engine Power Core Fission Core Reactor Heavy Antimatter Reactor Propulsion Light Treads Treads Light Treads Wheel Wheel Hover Unit Improved Linear Gravjet Utility Large Storage Unit Device Improved Heat Sink Storage Large Storage Unit Processor Advanced Signal Interpreter Hackware Hacking Suite Protection Improved Medium Armor Plating Weapon Antimatter Cannon Energy Gun Improved EM Shotgun Energy Cannon Advanced Beam Cannon Ballistic Gun Heavy Machine Gun Ballistic Cannon Antimatter Cannon Launcher Scatter Rocket Array Special Weapon Mining Laser Slashing Weapon Axe Build | -11 -10 -10 -9 -9 -9 -7 -6 -5 -5 -5 -5 -4 -4 -3 ------- Run | Scr Mat Min Mat Sto Rec Fac Fac Fac Upp Upp War Pro Fac Res Slots Evolved 14 | . . . 2 . . 4 2 2 . . . . 2 2 Power 1 | . . . . . . . 1 . . . . . . . Propulsion . | . . . . . . . . . . . . . . . Utility 11 | . . . 2 . . 3 . 2 . . . . 2 2 Weapon 2 | . . . . . . 1 1 . . . . . . . Parts Attached 198 | 6 3 1 36 17 1 29 28 33 3 2 4 10 19 6 Power 14 | . . . 4 1 . 1 2 2 . . 1 1 2 . Engine 7 | . . . 4 1 . 1 1 . . . . . . . Core 6 | . . . . . . . 1 2 . . 1 1 1 . Reactor 1 | . . . . . . . . . . . . . 1 . Propulsion 31 | 2 . . 6 3 . 4 4 4 . . . 2 3 3 Treads 24 | 1 . . 3 3 . 4 4 4 . . . 2 1 2 Leg . | . . . . . . . . . . . . . . . Wheel 4 | 1 . . 3 . . . . . . . . . . . Hover 3 | . . . . . . . . . . . . . 2 1 Flight . | . . . . . . . . . . . . . . . Utility 64 | 2 2 . 6 4 . 8 10 16 . 2 1 3 9 1 Device 32 | 1 . . 4 3 . 6 5 7 . 1 1 2 2 . Storage 11 | 1 2 . 2 1 . . 1 1 . 1 . 1 1 . Processor 10 | . . . . . . 1 2 3 . . . . 4 . Hackware 2 | . . . . . . . . . . . . . 1 1 Protection 9 | . . . . . . 1 2 5 . . . . 1 . Artifact . | . . . . . . . . . . . . . . . Weapon 89 | 2 1 1 20 9 1 16 12 11 3 . 2 4 5 2 Energy Gun 26 | 2 1 . 10 5 . 4 3 . . . 1 . . . Energy Cannon 19 | . . . 5 2 . 9 3 . . . . . . . Ballistic Gun 10 | . . . . 1 . . 4 5 . . . . . . Ballistic Cannon 10 | . . . . . . . . 3 1 . 1 3 2 . Launcher 10 | . . . 2 1 . 1 . . 1 . . . 3 2 Special Weapon 2 | . . 1 1 . . . . . . . . . . . Impact Weapon . | . . . . . . . . . . . . . . . Slashing Weapon 12 | . . . 2 . 1 2 2 3 1 . . 1 . . Piercing Weapon . | . . . . . . . . . . . . . . . Special Melee Weapon . | . . . . . . . . . . . . . . . Unidentified Prototypes 15 | . . . 3 3 . 1 2 3 . . 2 . 1 . Parts Lost 65 | . 1 . 15 5 . 4 4 7 1 . . 6 15 7 Power 8 | . . . 1 1 . . 1 2 . . . 1 2 . Propulsion 17 | . . . 5 3 . 1 . 3 . . . 2 2 1 Utility 16 | . . . . . . . 2 2 . . . 2 6 4 Weapon 24 | . 1 . 9 1 . 3 1 . 1 . . 1 5 2 Highest Loss Streak 12 | . 1 . 6 1 . 2 1 3 1 . . 2 12 3 Average Slot Usage (%) 93 | . 85 85 96 99 100 97 98 93 93 94 94 83 81 22 Engine 5 | . . . 10 10 11 7 7 1 . . . . . . Core 2 | . . . . . . . 4 6 5 5 5 7 7 . Treads 12 | . 14 14 10 17 22 14 13 10 11 11 11 10 7 1 Wheel 2 | . 14 14 10 4 . . . . . . . . . . Device 11 | . 4 . 10 10 11 18 16 6 11 11 11 4 12 1 Storage 23 | . 23 28 33 32 33 23 20 17 17 17 17 17 13 . Processor 9 | . . . . . . 7 6 18 23 23 23 23 20 12 Protection 1 | . . . . . . 3 2 5 . . . . 3 . Energy Gun 7 | . 28 15 7 7 19 10 7 . . . 2 . . . Energy Cannon 5 | . . . 8 14 . 6 10 . . . . . . . Ballistic Gun 2 | . . . . . . . 6 15 4 . . . . . Ballistic Cannon 3 | . . . . . . . . 6 16 17 13 15 11 . Slashing Weapon 1 | . . . 2 . 2 3 1 1 . 5 5 1 . . Naked Turns . | . . . . . . . . . . . . . . . Heaviest Build 134 | 7 34 34 81 84 79 103 118 124 108 108 129 134 133 1 Greatest Support 75 | 20 10 10 20 40 40 40 50 57 57 57 57 60 58 75 Greatest Overweight (x) 8 | . 3 3 8 8 1 4 2 6 1 1 2 4 4 . Average Overweight (x) 2 | . 1 3 6 3 1 2 1 1 1 1 1 1 1 . Largest Inventory Capacity 24 | 6 16 16 24 24 24 24 24 24 24 24 24 24 24 4 Average Capacity 22 | 5 12 16 23 23 24 24 24 24 24 24 24 24 20 4 Most Carried 24 | 6 16 16 24 24 24 24 24 24 24 24 24 24 24 4 Average Carried 21 | 4 8 16 19 23 24 23 21 23 22 23 23 23 17 3 Final Capacity 24 | 6 16 16 24 24 24 24 24 24 24 24 24 24 4 4 Final Carried 24 | 6 16 16 24 24 24 20 23 22 23 24 24 24 4 2 Class Distribution -------------------- 46% | Hauler-Mutant 23% | Hauler-Gunner 11% | Hauler-Tank 6% | Mutant 3% | Hauler-Skirmisher 3% | Scavenger-Gunner Dominant Class ---------------- Mutant | -10/Materials Mutant | -10/Mines Hauler-Mutant | -9/Materials Hauler-Mutant | -9/Storage Hauler-Mutant | -9/Recycling Hauler-Mutant | -7/Factory Hauler-Gunner | -6/Factory Hauler-Gunner | -5/Factory Hauler-Mutant | -5/Upper Caves Hauler-Gunner | -5/Upper Caves Hauler-Gunner | -5/Warlord Hauler-Gunner | -4/Proximity Caves Scavenger-Gunner | -4/Factory Hacker-Mutant | -3/Research Resources | -11 -10 -10 -9 -9 -9 -7 -6 -5 -5 -5 -5 -4 -4 -3 ----------- Run | Scr Mat Min Mat Sto Rec Fac Fac Fac Upp Upp War Pro Fac Res Matter Collected 5313 | 260 30 10 325 135 11 519 595 1544 94 116 456 882 320 16 Remotely 600 | . . . . . . . 442 158 . . . . . . Salvage Created 9181 | 224 316 . 1680 1693 24 1398 897 1889 57 . . 310 660 33 Parts 488 | 17 17 . 113 103 6 71 37 72 4 . . 2 41 5 Haulers Intercepted 12 | . 1 . 5 3 . . 1 2 . . . . . . Recyclers Shooed 4 | . . . . 1 . . . . . . . . 3 . Parts Field Recycled . | . . . . . . . . . . . . . . . Retrieved Matter . | . . . . . . . . . . . . . . . Parts Self-Destructed 101 | . . . . . . . . . . . 78 23 . . Prevented 20 | . . . . . . . . . . . 19 1 . . Kills | -11 -10 -10 -9 -9 -9 -7 -6 -5 -5 -5 -5 -4 -4 -3 ------- Run | Scr Mat Min Mat Sto Rec Fac Fac Fac Upp Upp War Pro Fac Res Combat Hostiles Destroyed 195 | . 8 . 41 34 2 29 15 34 4 2 . 9 15 2 Melee 19 | . . . 11 . . 3 . 4 . 1 . . . . Guns 69 | . 8 . 13 9 1 11 8 19 . . . . . . Cannons 76 | . . . 10 23 . 10 5 11 . 1 . 9 7 . AOE 29 | . . . 7 1 1 5 1 . 4 . . . 8 2 Classes Destroyed 17 | 3 3 . 4 1 1 2 . 1 . . . 2 . . Worker 12 | 2 . . 2 1 . . 2 5 . . . . . . Builder 6 | . . . . . . 3 . 1 . . . . 1 1 Tunneler 7 | 5 . . . . . . 1 . . . . . 1 . Hauler 12 | . 1 . 5 3 . . 1 2 . . . . . . Recycler 7 | 1 . . . 2 . 1 . 1 . . . 1 1 . Operator 2 | . . . 2 . . . . . . . . . . . Drone 2 | . . . . . 2 . . . . . . . . . Watcher 4 | . . . 1 . . 1 . 1 . . . . . 1 Swarmer 56 | . 3 . 14 9 . 10 3 7 4 . . . 4 2 Grunt 73 | . 5 . 17 15 . 12 6 12 . . . 1 5 . Brawler 1 | . . . . . . . . . . . . 1 . . Duelist 5 | . . . 1 1 . 2 . . . . . . 1 . Protector 1 | . . . . 1 . . . . . . . . . . Sentry 34 | . . . 9 10 . 2 4 5 . . . 4 . . Hunter 7 | . . . . . . . . 3 . 2 . 2 . . Programmer 17 | . . . . . . 3 2 7 . . . . 5 . Behemoth 1 | . . . . . . . . . . . . 1 . . Best Kill Streak 14 | 7 3 . 6 5 2 13 4 8 4 1 . 3 14 4 Combat Bots Only 11 | . 3 . 6 4 2 10 3 4 4 1 . 2 11 2 Max Kills in Single Turn 5 | 1 1 . 5 2 1 4 3 2 4 1 . 1 4 4 Gunslinging 1 | . . . . 1 . . . . . . . . . . Exploded 4 | . . . 4 1 1 2 1 . 4 . . . 3 2 Melee 1 | . . . 1 . . 1 . 1 . 1 . . . . Uniques/NPCs Destroyed . | . . . . . . . . . . . . . . . Combat | -11 -10 -10 -9 -9 -9 -7 -6 -5 -5 -5 -5 -4 -4 -3 -------- Run | Scr Mat Min Mat Sto Rec Fac Fac Fac Upp Upp War Pro Fac Res Damage Taken 15326 | . 258 . 1634 913 20 1540 1374 2436 250 374 119 1428 2818 2162 Core 3399 | . 65 . 228 163 . 136 121 125 34 113 . 219 894 1301 Absorbed by Shields . | . . . . . . . . . . . . . . . Core Remaining (%) 59 | 100 . 74 . . 2 80 85 . . . . 50 22 . Volleys Fired 377 | 16 32 . 61 63 3 39 34 78 1 6 . 28 15 1 Largest 4 | 2 2 . 2 2 2 3 4 4 2 3 . 3 3 2 Hottest 303 | 80 80 . 136 136 90 189 303 163 90 133 . 170 170 98 Shots Fired 1025 | 32 64 . 116 125 6 114 133 296 2 18 . 80 37 2 Gun 553 | 32 64 . 65 39 6 55 91 199 . . . 2 . . Cannon 457 | . . . 49 86 . 56 42 97 1 18 . 78 30 . Launcher 15 | . . . 2 . . 3 . . 1 . . . 7 2 Special . | . . . . . . . . . . . . . . . Kinetic 488 | . . . . . . . 65 296 1 18 . 78 30 . Thermal 393 | 32 64 . 105 86 . 85 21 . . . . . . . Explosive 15 | . . . 2 . . 3 . . 1 . . . 7 2 Electromagnetic 127 | . . . 9 39 6 26 47 . . . . . . . Entropic 2 | . . . . . . . . . . . . 2 . . Robot Hit Streak 53 | 9 13 . 53 35 3 29 26 31 . 17 . 24 42 . Robot Miss Streak 3 | 1 2 . 1 2 2 2 3 3 . 1 . 3 1 . Penetration Max 1 | . . . . . . . . 1 . . . . . . Secondary Targets 5 | . . . 1 3 . . . 1 . . . . . . Max Gunslinging Chain 1 | . . . 1 1 . . . 1 . . . . . . Shots Hit Robots 808 | 21 51 . 122 90 4 87 102 218 . 19 . 67 27 . Core Hits 449 | 9 18 . 63 57 2 58 35 104 7 9 . 22 55 10 Critical Hits 21 | . . . 6 8 . 4 1 2 . . . . . . Critical Kills 8 | . . . 3 3 . 1 1 . . . . . . . Critical Parts Destroyed 13 | . . . 3 5 . 3 . 2 . . . . . . Melee Attacks 104 | . . . 35 . 10 10 9 19 6 2 7 6 . . Impact . | . . . . . . . . . . . . . . . Slashing 104 | . . . 35 . 10 10 9 19 6 2 7 6 . . Piercing . | . . . . . . . . . . . . . . . Sneak Attacks 2 | . . . 2 . . . . . . . . . . . Combat Hostiles . | . . . . . . . . . . . . . . . Follow-up Attacks . | . . . . . . . . . . . . . . . Damage Inflicted 23979 | 241 560 . 2826 2037 131 2558 2756 5690 310 459 . 3270 2482 659 Guns 8266 | 241 560 . 655 652 85 870 1652 3457 . . . 94 . . Cannons 9793 | . . . 741 1134 . 888 755 1654 41 388 . 3076 1116 . Explosions 3979 | . . . 356 242 46 416 349 226 269 . . 100 1318 657 Melee 1872 | . . . 1064 . . 384 . 353 . 71 . . . . Ramming 69 | . . . 10 9 . . . . . . . . 48 2 Kinetic 10878 | . . . . . . . 1146 5111 41 388 . 3076 1116 . Thermal 5790 | 241 560 . 1318 1376 46 1250 758 . . . . 100 141 . Explosive 3101 | . . . 356 . . 416 . 226 269 . . . 1177 657 Electromagnetic 2175 | . . . 78 652 85 508 852 . . . . . . . Impact . | . . . . . . . . . . . . . . . Slashing 1872 | . . . 1064 . . 384 . 353 . 71 . . . . Piercing . | . . . . . . . . . . . . . . . Entropic 94 | . . . . . . . . . . . . 94 . . Highest Corruption 25 | . . . . 1 1 9 . 3 3 3 3 . 25 3 Average Corruption 3 | . . . . 1 1 6 . 1 3 3 3 . 14 1 Corruption Purged . | . . . . . . . . . . . . . . . Effects 93 | . . . . 2 2 52 . 10 7 8 1 . 11 . Message Errors 23 | . . . . . 2 14 . 2 3 1 . . 1 . Matter Fused 21 | . . . . . . 9 . 2 2 3 1 . 4 . Heat Flow Errors 8 | . . . . . . 5 . 1 . 1 . . 1 . Energy Discharges 9 | . . . . 1 . 5 . 1 . 1 . . 1 . Parts Rejected 1 | . . . . . . 1 . . . . . . . . Data Loss (minor) 8 | . . . . . . 4 . 1 2 1 . . . . Data Loss (major) 1 | . . . . . . 1 . . . . . . . . Misfires 2 | . . . . . . 2 . . . . . . . . Misdirections 3 | . . . . . . . . . . . . . 3 . Targeting Errors 13 | . . . . 1 . 8 . 3 . 1 . . . . Weapon Failures 4 | . . . . . . 3 . . . . . . 1 . Overload Shots 2 | . . . . . . 2 . . . . . . . . Overflow Damage 642 | . . . 40 14 . 27 144 86 34 9 . . 253 35 Projectiles 320 | . . . . . . 24 21 73 16 . . . 186 . Explosions 270 | . . . . 14 . . 123 13 18 . . . 67 35 Melee 52 | . . . 40 . . 3 . . . 9 . . . . Knockbacks 38 | . . . . . . . . 12 . 5 . 9 12 . Impact 2 | . . . . . . . . . . . . . 2 . Kinetic 36 | . . . . . . . . 12 . 5 . 9 10 . Secondary . | . . . . . . . . . . . . . . . Self-Inflicted Damage 516 | . . . 5 35 20 124 44 . 41 . . . 246 1 Shots 22 | . . . . 2 1 7 1 . 2 . . . 9 . Rammed 14 | . . . 1 1 . . . . . . . . 11 1 Targets Rammed 14 | . . . 1 1 . . . . . . . . 11 1 Kicked . | . . . . . . . . . . . . . . . Crushed . | . . . . . . . . . . . . . . . Highest Temperature 395 | 15 75 . 242 234 6 198 368 345 . 61 . 395 155 . Average Temperature 81 | 5 22 . 65 50 6 60 145 90 . 34 . 146 90 . Received Heat Transfer 2412 | . 153 . 693 324 . 207 234 399 24 . . 219 123 36 Effects 6 | . . . . . . . . 5 . . . 1 . . Shutdowns 2 | . . . . . . . . 1 . . . 1 . . Interference 3 | . . . . . . . . 3 . . . . . . Matter Decay 1 | . . . . . . . . 1 . . . . . . Siege Activations . | . . . . . . . . . . . . . . . Robots Corrupted 2 | . . . . 1 . . 1 . . . . . . . Combat Hostiles 2 | . . . . 1 . . 1 . . . . . . . Parts Fried 14 | . . . . 7 . 1 6 . . . . . . . Impact Corruptions . | . . . . . . . . . . . . . . . Robots Melted . | . . . . . . . . . . . . . . . Combat Hostiles . | . . . . . . . . . . . . . . . Parts Melted 23 | 1 5 . 5 7 . 3 2 . . . . . . . Heat Transferred 10243 | 550 1250 . 2689 2335 50 2246 933 . . . . 40 150 . Parts Sabotaged . | . . . . . . . . . . . . . . . Parts Stolen . | . . . . . . . . . . . . . . . Parts Stripped . | . . . . . . . . . . . . . . . Power Chain Reactions 5 | . . . . 3 1 . 1 . . . . . . . Missiles Intercepted . | . . . . . . . . . . . . . . . Alert | -11 -10 -10 -9 -9 -9 -7 -6 -5 -5 -5 -5 -4 -4 -3 ------- Run | Scr Mat Min Mat Sto Rec Fac Fac Fac Upp Upp War Pro Fac Res Peak Influence 1047 | 40 199 40 279 393 123 945 287 1047 . . . . 489 664 Average Influence 252 | 17 85 40 68 138 55 663 146 443 . . . . 176 279 Maximum Alert Level 3 | . . . 1 1 . 3 1 3 . . . . 2 2 Low Security (%) 61 | 100 100 100 93 80 100 . 58 36 . . . . 70 63 Level 1 13 | . . . 6 19 . 7 41 16 . . . . 4 14 Level 2 12 | . . . . . . 49 . 11 . . . . 24 21 Level 3 12 | . . . . . . 43 . 35 . . . . . . Level 4 . | . . . . . . . . . . . . . . . Level 5 . | . . . . . . . . . . . . . . . High Security . | . . . . . . . . . . . . . . . Max Security . | . . . . . . . . . . . . . . . Squads Dispatched 42 | . 1 . 4 5 . 10 5 10 . . . . 3 4 Investigation 7 | . 1 . 1 2 . 1 1 . . . . . . 1 Extermination 11 | . . . . . . 3 3 3 . . . . 2 . Reinforcement 14 | . . . 3 1 . 3 . 4 . . . . 1 2 Assault 3 | . . . . 2 . . . . . . . . . 1 Garrison 7 | . . . . . . 3 1 3 . . . . . . Intercept . | . . . . . . . . . . . . . . . Construction Impeded 2 | . . . . . . 1 . 1 . . . . . . Haulers Reinforced 2 | . . . . . . . . 2 . . . . . . Stealth | -11 -10 -10 -9 -9 -9 -7 -6 -5 -5 -5 -5 -4 -4 -3 --------- Run | Scr Mat Min Mat Sto Rec Fac Fac Fac Upp Upp War Pro Fac Res Distress Signals 20 | . . . 5 7 . 1 . 3 . 1 1 . . 2 Communications Jammed . | . . . . . . . . . . . . . . . Distress Signals . | . . . . . . . . . . . . . . . Times Spotted 377 | . 17 . 64 51 28 46 21 52 5 2 13 14 37 27 Peak Tracking Total 21 | . 3 . 6 9 5 6 5 8 4 1 7 6 13 21 Tactical Retreats 23 | . . . 3 2 . 5 5 1 . . . 1 3 3 Traps | -11 -10 -10 -9 -9 -9 -7 -6 -5 -5 -5 -5 -4 -4 -3 ------- Run | Scr Mat Min Mat Sto Rec Fac Fac Fac Upp Upp War Pro Fac Res Traps Triggered 12 | . 1 . . 3 . 4 2 . . . . 1 . 1 Indirectly . | . . . . . . . . . . . . . . . Trap Hack Attempts . | . . . . . . . . . . . . . . . Triggered . | . . . . . . . . . . . . . . . Disarmed . | . . . . . . . . . . . . . . . Reprogrammed . | . . . . . . . . . . . . . . . Reused . | . . . . . . . . . . . . . . . Traps Extracted . | . . . . . . . . . . . . . . . Installed . | . . . . . . . . . . . . . . . Triggered 13 | . . . . . . . 1 . . . 12 . . . Machines | -11 -10 -10 -9 -9 -9 -7 -6 -5 -5 -5 -5 -4 -4 -3 ---------- Run | Scr Mat Min Mat Sto Rec Fac Fac Fac Upp Upp War Pro Fac Res Machines Disabled 31 | . . . 2 10 . . 3 9 . . . 1 6 . Max in Single Turn 4 | . . . 2 1 . . 2 4 . . . 1 4 . Garrison Access 3 | . . . . 1 . 2 . . . . . . . . Machines Sabotaged . | . . . . . . . . . . . . . . . Garrisons Compromised . | . . . . . . . . . . . . . . . Overloaded Fab Kills . | . . . . . . . . . . . . . . . Fab Network Shutdowns 2 | . . . . . . . . 1 . . . . . 1 Hacking | -11 -10 -10 -9 -9 -9 -7 -6 -5 -5 -5 -5 -4 -4 -3 --------- Run | Scr Mat Min Mat Sto Rec Fac Fac Fac Upp Upp War Pro Fac Res Machines Accessed 57 | . 3 . 9 8 3 4 7 6 1 . 9 2 3 2 Terminals 30 | . 3 . 7 6 3 1 3 3 1 . . . 2 1 Fabricators 3 | . . . . . . . . 1 . . . 1 . 1 Repair Stations 8 | . . . 2 1 . . 2 2 . . . . 1 . Recycling Units 1 | . . . . . . . . . . . . 1 . . Scanalyzers 1 | . . . . . . . 1 . . . . . . . Garrison Access 5 | . . . . 1 . 3 1 . . . . . . . Total Hacks 128 | . 8 . 25 20 6 5 15 14 3 . 16 5 8 3 Successful 81 | . 7 . 19 14 3 2 6 5 1 . 16 2 3 3 Failed 47 | . 1 . 6 6 3 3 9 9 2 . . 3 5 . Catastrophic 7 | . . . 2 1 1 1 2 . . . . . . . Database Lockouts . | . . . . . . . . . . . . . . . Manual 52 | . 8 . 13 12 6 1 2 4 2 . . . 2 2 Terminals 66 | . 8 . 16 16 6 1 5 5 3 . . . 4 2 Fabricators 7 | . . . . . . . . 3 . . . 3 . 1 Repair Stations 27 | . . . 9 3 . . 5 6 . . . . 4 . Recycling Units 2 | . . . . . . . . . . . . 2 . . Scanalyzers 3 | . . . . . . . 3 . . . . . . . Garrison Access 7 | . . . . 1 . 4 2 . . . . . . . Terminal Hacks 51 | . 4 . 9 11 3 . 2 1 1 . 16 . 2 2 Record 16 | . . . . . . . . . 1 . 15 . . . Part Schematic 2 | . 2 . . . . . . . . . . . . . Robot Analysis 1 | . . . 1 . . . . . . . . . . . Open Door 2 | . . . . 1 . . . . . . 1 . . . Level Access Points 2 | . . . . . 1 . . . . . . . . 1 Branch Access Points 3 | . . . 1 . . . . . . . . . 1 1 Repair Station Index 1 | . . . . 1 . . . . . . . . . . Scanalyzer Index 2 | . . . . 1 . . 1 . . . . . . . Alert Level 6 | . . . 1 1 1 . 1 1 . . . . 1 . Unreport Threat 7 | . . . 3 3 1 . . . . . . . . . Locate Traps 2 | . . . 1 1 . . . . . . . . . . Transport Status 1 | . . . . 1 . . . . . . . . . . Hauler Manifests 4 | . 1 . 2 1 . . . . . . . . . . Zone Layout 2 | . 1 . . 1 . . . . . . . . . . Fabricator Hacks 4 | . . . . . . . . 2 . . . 1 . 1 Load Schematic 1 | . . . . . . . . 1 . . . . . . Build 3 | . . . . . . . . 1 . . . 1 . 1 Repair Station Hacks 15 | . . . 8 2 . . 2 2 . . . . 1 . Scan Component 10 | . . . 4 1 . . 2 2 . . . . 1 . Repair 5 | . . . 4 1 . . . . . . . . . . Recycling Unit Hacks 1 | . . . . . . . . . . . . 1 . . Retrieve Components 1 | . . . . . . . . . . . . 1 . . Scanalyzer 2 | . . . . . . . 2 . . . . . . . Insert Component 1 | . . . . . . . 1 . . . . . . . Analyze 1 | . . . . . . . 1 . . . . . . . Garrison Access Hacks 3 | . . . . 1 . 2 . . . . . . . . Seal Access 3 | . . . . 1 . 2 . . . . . . . . Unauthorized Hacks 5 | . 3 . 2 . . . . . . . . . . . Terminals 5 | . 3 . 2 . . . . . . . . . . . Track 4 | . 2 . 2 . . . . . . . . . . . Botnet 1 | . 1 . . . . . . . . . . . . . Fabricators . | . . . . . . . . . . . . . . . Repair Stations . | . . . . . . . . . . . . . . . Recycling Units . | . . . . . . . . . . . . . . . Scanalyzers . | . . . . . . . . . . . . . . . Garrison Access . | . . . . . . . . . . . . . . . Data Cores Recovered . | . . . . . . . . . . . . . . . Used . | . . . . . . . . . . . . . . . Hacking Detections 39 | . 2 . 8 7 2 1 6 6 1 . . 2 3 1 Full Trace Events 2 | . . . 1 1 . . . . . . . . . . Feedback Events 1 | . . . . 1 . . . . . . . . . . Corruption 1 | . . . . 1 . . . . . . . . . . Feedback Blocked . | . . . . . . . . . . . . . . . Robot Schematics Acquired . | . . . . . . . . . . . . . . . Robots Built 3 | . . . . . . . . . . . . . . 3 Matter 351 | . . . . . . . . . . . . . . 351 Time 93 | . . . . . . . . . . . . . . 93 Total Robot Build Rating 21 | . . . . . . . . . . . . . . 21 Part Schematics Acquired 3 | . 2 . . . . . 1 . . . . . . . Parts Built 2 | . . . . . . . . 2 . . . . . . Matter 190 | . . . . . . . . 190 . . . . . . Time 95 | . . . . . . . . 95 . . . . . . Total Part Build Rating 10 | . . . . . . . . 10 . . . . . . Parts Repaired 5 | . . . 4 1 . . . . . . . . . . Time 159 | . . . 146 13 . . . . . . . . . . Parts Recycled . | . . . . . . . . . . . . . . . Recycled Matter . | . . . . . . . . . . . . . . . Retrieved Matter . | . . . . . . . . . . . . . . . Retrieved Components 10 | . . . . . . . . . . . . 10 . . Parts Scanalyzed 1 | . . . . . . . 1 . . . . . . . Part Schematics Acquired 1 | . . . . . . . 1 . . . . . . . Parts Damaged . | . . . . . . . . . . . . . . . Bothacking | -11 -10 -10 -9 -9 -9 -7 -6 -5 -5 -5 -5 -4 -4 -3 ------------ Run | Scr Mat Min Mat Sto Rec Fac Fac Fac Upp Upp War Pro Fac Res Used RIF Installer . | . . . . . . . . . . . . . . . Robots Hacked . | . . . . . . . . . . . . . . . Non-combat . | . . . . . . . . . . . . . . . Combat . | . . . . . . . . . . . . . . . Robot Hacks Applied . | . . . . . . . . . . . . . . . Relay Couplers Released . | . . . . . . . . . . . . . . . Robots Rewired 6 | . . . . . . . . . . . . 6 . . Allies Hacked . | . . . . . . . . . . . . . . . Hacks Repelled . | . . . . . . . . . . . . . . . Allies | -11 -10 -10 -9 -9 -9 -7 -6 -5 -5 -5 -5 -4 -4 -3 -------- Run | Scr Mat Min Mat Sto Rec Fac Fac Fac Upp Upp War Pro Fac Res Total Allies 22 | . . 1 . 12 . . . . . . . 6 . 3 Largest Group 10 | . . 1 1 10 . . . . . . . 6 6 3 Highest-Rated Group 284 | . . 31 31 110 . . . . . . . 284 284 141 Highest-Rated Ally 48 | . . 31 31 31 . . . . . . . 48 48 47 Total Orders 3 | . . . . 3 . . . . . . . . . . ROAM 1 | . . . . 1 . . . . . . . . . . EXPLORE 2 | . . . . 2 . . . . . . . . . . Ally Attacks 109 | . . . . 61 . . . . . . . . 41 7 Total Damage 1989 | . . . . 826 . . . . . . . . 888 275 Kills 12 | . . . . 8 . . . . . . . . 4 . Allies Corrupted . | . . . . . . . . . . . . . . . Allies Melted 1 | . . . . . . . . . . . 1 . . . Intel | -11 -10 -10 -9 -9 -9 -7 -6 -5 -5 -5 -5 -4 -4 -3 ------- Run | Scr Mat Min Mat Sto Rec Fac Fac Fac Upp Upp War Pro Fac Res Robot Analysis Total 1 | . . . 1 . . . . . . . . . . . Derelict Logs Recovered 1 | . . . . . . . . . . . . 1 . . Drone Launches 3 | . . . . 3 . . . . . . . . . . Drone Recoveries . | . . . . . . . . . . . . . . . Exploration | -11 -10 -10 -9 -9 -9 -7 -6 -5 -5 -5 -5 -4 -4 -3 ------------- Run | Scr Mat Min Mat Sto Rec Fac Fac Fac Upp Upp War Pro Fac Res Turns Passed 16590 | 184 689 81 2905 1814 901 2472 1862 1701 385 298 940 1378 725 255 Spaces Moved 8094 | 154 533 65 1385 801 474 1038 788 623 194 144 487 554 423 431 Core 618 | 10 . . . . . . . . . . . . 194 414 Treads 5263 | 1 . . 216 500 474 1038 788 623 194 144 487 554 227 17 Legs . | . . . . . . . . . . . . . . . Wheels 2211 | 143 533 65 1169 301 . . . . . . . . . . Hover 2 | . . . . . . . . . . . . . 2 . Flight . | . . . . . . . . . . . . . . . Fastest Speed 50 | 50 80 110 130 150 180 200 185 185 185 185 185 180 50 50 Average Speed 170 | 78 95 110 163 179 180 204 206 199 185 185 186 209 143 55 Slowest Speed 290 | 160 110 110 220 220 180 240 210 290 185 185 205 240 250 180 Overloaded Moves . | . . . . . . . . . . . . . . . Propulsion Burnouts . | . . . . . . . . . . . . . . . Robots Hopped . | . . . . . . . . . . . . . . . Cave-ins Triggered 1 | . . . . . . . 1 . . . . . . . Exploration Rate (%) 45 | 7 67 16 87 93 92 35 24 18 48 31 74 59 17 17 Regions Visited 14 Branch Regions 7 Pre-discovered Areas . | . . . . . . . . . . . . . . . Known Exits Taken 9 | . . . 1 . 1 1 1 1 1 1 1 1 . . Unknown Exits Taken 5 | 1 1 1 . 1 . . . . . . . . 1 . Scrap Searched 7 | . . 1 . . . . . . 2 2 . 2 . . Spaces Dug 51 | . . . . . 10 1 9 13 5 . 7 6 . . Terrain Destroyed 426 | . . . 15 6 16 34 25 96 42 3 7 10 148 24 Melee 44 | . . . . . 10 1 9 8 5 . 7 4 . . Projectile 64 | . . . . . . . 3 48 . 3 . 6 4 . AOE 318 | . . . 15 6 6 33 13 40 37 . . . 144 24 Actions | -11 -10 -10 -9 -9 -9 -7 -6 -5 -5 -5 -5 -4 -4 -3 --------- Run | Scr Mat Min Mat Sto Rec Fac Fac Fac Upp Upp War Pro Fac Res Total 9904 | 181 647 74 1859 1057 501 1277 928 866 205 158 512 701 492 446 Wait 771 | . 67 8 282 137 12 122 40 85 . 2 1 7 7 1 Move 8079 | 153 532 64 1384 800 473 1037 786 622 193 143 486 553 422 431 Hop . | . . . . . . . . . . . . . . . Pick Up 129 | 6 11 . 37 18 1 14 10 10 2 2 5 8 3 2 Fast Attach 84 | 6 2 1 10 12 . 8 15 13 . . 2 3 8 4 Attach 63 | . 1 . 18 5 . 10 5 7 1 . 1 4 9 2 Detach 15 | . . . 5 1 . 1 2 2 . . 2 1 1 . Swap 51 | . . . 8 . 1 11 8 13 2 2 1 3 2 . Drop 124 | . 2 1 18 16 1 21 18 17 . 1 7 4 14 4 Fire 377 | 16 32 . 61 63 3 39 34 78 1 6 . 28 15 1 Melee 104 | . . . 35 . 10 10 9 19 6 2 7 6 . . Ram 6 | . . . 1 . . . . . . . . . 4 1 Kick . | . . . . . . . . . . . . . . . Crush 8 | . . . . 1 . . . . . . . . 7 . Escape Stasis 5 | . . . . . . 4 1 . . . . . . . Rewire 88 | . . . . 4 . . . . . . . 84 . . Trap . | . . . . . . . . . . . . . . . Miscellaneous . | . . . . . . . . . . . . . . . Route ------- -11/Scrapyard -10/Materials (discovered 3 exits: *Mat x2 / [*Min]) -10/Mines -9/Materials (discovered 7 exits: [*Mat x3] / *Min x2 / *Sto x2) -9/Storage (discovered 2 exits: [*Mat] / *Rec) -9/Recycling -7/Factory (discovered 2 exits: *Fac x2) -6/Factory -5/Factory -5/Upper Caves -5/Upper Caves -5/Warlord -4/Proximity Caves -4/Factory (discovered 3 exits: *Res / Upp x2) -3/Research (discovered 6 exits: Res x3 / Arm / Tes x2) History --------- Turn | Location | Event 5 | -11/Scrapyard | Discovered new exit (range 15) 185 | -11/Scrapyard | Entered Materials 300 | -10/Materials | Build established: Mutant 504 | -10/Materials | Discovered new exit (range 10) 627 | -10/Materials | Discovered new exit (range 6) 709 | -10/Materials | Discovered new exit (range 3) 874 | -10/Materials | Entered Mines 877 | -10/Mines | Received a Mining Laser from a helpful Derelict 928 | -10/Mines | Discovered new exit (range 13) 955 | -10/Mines | Entered Materials 955 | -9/Materials | Accompanied by 1 ally 955 | -9/Materials | Evolved 2 slots: Utility x2 1036 | -9/Materials | Discovered new exit (range 15) 1074 | -9/Materials | Identified exit to Mines 1074 | -9/Materials | Identified exit to Storage 1267 | -9/Materials | Build established: Hauler-Mutant 1282 | -9/Materials | Lost 3 parts (1n2w) 1606 | -9/Materials | Repaired Imp. Terrain Scanner 1714 | -9/Materials | Lost 6 parts (2n4w) 1917 | -9/Materials | Repaired Imp. Heat Sink 1962 | -9/Materials | Discovered new exit (range 5) 2502 | -9/Materials | Repaired Imp. Heat Sink 2541 | -9/Materials | Repaired Katana 2986 | -9/Materials | Core integrity fell below 50% 3181 | -9/Materials | Discovered new exit (range 7) 3525 | -9/Materials | Discovered new exit (range 16) 3860 | -9/Materials | Entered Storage 4826 | -9/Storage | Assisted by bots powering up and referring to "LRC-V3" 5004 | -9/Storage | Discovered new exit (range 15) 5051 | -9/Storage | Core integrity fell below 20% 5065 | -9/Storage | Met a pair of Derelict thieves 5457 | -9/Storage | Found Prototype Launcher 5457 | -9/Storage | Identified Scatter Rocket Array 5460 | -9/Storage | Found Scatter Rocket Array 5463 | -9/Storage | Found Scatter Rocket Array 5469 | -9/Storage | Found Scatter Rocket Array 5472 | -9/Storage | Found Scatter Rocket Array 5599 | -9/Storage | Repaired Hcp. Storage Unit 5669 | -9/Storage | Used back door to open Recycling access 5669 | -9/Storage | Discovered new exit (range 4) 5674 | -9/Storage | Entered Recycling 5716 | -9/Recycling | Spotter reported a threat 5716 | -9/Recycling | Spotter reported a threat 5717 | -9/Recycling | Spotter reported a threat 5750 | -9/Recycling | Spotter reported a threat 5818 | -9/Recycling | Spotter reported a threat 5820 | -9/Recycling | Spotter reported a threat 5826 | -9/Recycling | Spotter reported a threat 5834 | -9/Recycling | Spotter reported a threat 5871 | -9/Recycling | Spotter reported a threat 5878 | -9/Recycling | Spotter reported a threat 5885 | -9/Recycling | Identified exit to Factory 5909 | -9/Recycling | Spotter reported a threat 5911 | -9/Recycling | Spotter reported a threat 5990 | -9/Recycling | Spotter reported a threat 6017 | -9/Recycling | Spotter reported a threat 6053 | -9/Recycling | Spotter reported a threat 6070 | -9/Recycling | Spotter reported a threat 6098 | -9/Recycling | Spotter reported a threat 6120 | -9/Recycling | Spotter reported a threat 6154 | -9/Recycling | Spotter reported a threat 6168 | -9/Recycling | Spotter reported a threat 6173 | -9/Recycling | Spotter reported a threat 6176 | -9/Recycling | Spotter reported a threat 6199 | -9/Recycling | Spotter reported a threat 6206 | -9/Recycling | Spotter reported a threat 6245 | -9/Recycling | Spotter reported a threat 6251 | -9/Recycling | Spotter reported a threat 6259 | -9/Recycling | Spotter reported a threat 6264 | -9/Recycling | Spotter reported a threat 6317 | -9/Recycling | Spotter reported a threat 6339 | -9/Recycling | Spotter reported a threat 6340 | -9/Recycling | Spotter reported a threat 6370 | -9/Recycling | Spotter reported a threat 6575 | -9/Recycling | Entered Factory 6575 | -7/Factory | Evolved 4 slots: Utility x3, Weapon x1 7705 | -7/Factory | Discovered new exit (range 6) 7726 | -7/Factory | Identified exit to Factory 8023 | -7/Factory | Build established: Hauler-Tank 8786 | -7/Factory | Garrison activated, responded to threat 8815 | -7/Factory | Destroyed 10 combat bots 9006 | -7/Factory | Discovered exit to Factory (range 9) 9047 | -7/Factory | Entered another Factory area 9047 | -6/Factory | Evolved 2 slots: Power x1, Weapon x1 9461 | -6/Factory | Crushed by falling debris 10052 | -6/Factory | Build established: Hauler-Gunner 10530 | -6/Factory | Garrison activated, responded to threat 10748 | -6/Factory | Discovered new exit (range 16) 10882 | -6/Factory | Identified exit to Factory 10909 | -6/Factory | Entered another Factory area 10909 | -5/Factory | Evolved 2 slots: Utility x2 11509 | -5/Factory | Fabricated Imp. Medium Treads (x2) 11808 | -5/Factory | Local fabrication network quarantined 12159 | -5/Factory | Discovered new exit (range 7) 12213 | -5/Factory | Identified exit to Upper Caves 12355 | -5/Factory | Garrison activated, responded to threat 12534 | -5/Factory | Lost 3 parts (1p1n1u) 12610 | -5/Factory | Entered Upper Caves 12868 | -5/Upper Caves | Build established: Hauler-Mutant 12937 | -5/Upper Caves | Discovered new exit (range 16) 12947 | -5/Upper Caves | Spotted B-75 Beast 12993 | -5/Upper Caves | Identified exit to Upper Caves 12995 | -5/Upper Caves | Entered another Upper Caves area 13238 | -5/Upper Caves | Discovered new exit (range 17) 13285 | -5/Upper Caves | Identified exit to Warlord 13293 | -5/Upper Caves | Entered Warlord 13308 | -5/Warlord | Build established: Hauler-Gunner 13325 | -5/Warlord | Discovered new exit (range 21) 13355 | -5/Warlord | System corruption cleaned by Quarantine Array 13699 | -5/Warlord | Warlord's base attacked by MAIN.C 13729 | -5/Warlord | Found Prototype Energy Gun 13732 | -5/Warlord | Found Prototype Energy Gun 13732 | -5/Warlord | Identified Vortex Rifle (x2) 13906 | -5/Warlord | Met Warlord 14049 | -5/Warlord | Warlord forces counterattacked 14135 | -5/Warlord | Spotted Executioner 14156 | -5/Warlord | Found Prototype Ballistic Cannon 14156 | -5/Warlord | Identified Hvy. Autocannon 14216 | -5/Warlord | Spotted Executioner 14231 | -5/Warlord | Identified exit to Proximity Caves 14233 | -5/Warlord | Entered Proximity Caves 14407 | -4/Proximity Caves | Spotted B-86 Titan 14455 | -4/Proximity Caves | Learned 4 Research zone layouts 14683 | -4/Proximity Caves | Spotted B-86 Titan 14684 | -4/Proximity Caves | Entered a huge 0b10 base via the front door 14745 | -4/Proximity Caves | Destroyed B-86 Titan 14855 | -4/Proximity Caves | Derelicts attacked a huge 0b10 base 15018 | -4/Proximity Caves | Discovered new exit (range 16) 15105 | -4/Proximity Caves | Identified exit to Factory 15611 | -4/Proximity Caves | Entered Factory 15611 | -4/Factory | Accompanied by 6 allies 15611 | -4/Factory | Evolved 2 slots: Utility x2 15658 | -4/Factory | P-70 Sage assimilated allied Swordsman 7c 15706 | -4/Factory | Identified exit to Upper Caves 15820 | -4/Factory | Build established: Scavenger-Gunner 16108 | -4/Factory | P-70 Sage assimilated allied Swordsman 7a 16184 | -4/Factory | Destroyed 11 combat bots 16213 | -4/Factory | System corruption reached 10% 16260 | -4/Factory | Lost 12 parts (2p2n3u5w) 16304 | -4/Factory | Core integrity fell below 50% 16332 | -4/Factory | Discovered new exit (range 7) 16336 | -4/Factory | Entered Research 16336 | -3/Research | Evolved 2 slots: Utility x2 16458 | -3/Research | Spotted B-86 Titan 16531 | -3/Research | Identified exit to Research 16535 | -3/Research | Local fabrication network quarantined 16539 | -3/Research | Identified exit to Armory 16539 | -3/Research | Identified exit to Testing 16547 | -3/Research | Fabricated G-67 Veteran? 16555 | -3/Research | Core integrity fell below 50% 16561 | -3/Research | Build established: Hacker-Mutant 16574 | -3/Research | Spotted B-86 Titan 16582 | -3/Research | Core integrity fell below 20% 16586 | -3/Research | First assault squad dispatched 16591 | -3/Research | Destroyed by P-80 Master with Gamma Rifle Last Messages --------------- 16585_ Penetrated by Slug. 16585_ Slug penetrates Wall. 16585_ Penetrated by Slug. 16585_ R-10 Processor collects Wheel. 16586_ ALERT: Significant disruption in Zone 6U, assault force dispatched. 16586_ S-43 Plague destroyed. 16586_ Destroyed Hpw. Tractor Beam. 16586_ Destroyed Adv. Sensor Array. 16586_ Destroyed Antigrav System. 16586_ S-43 Plague destroyed. 16586_ W-44 Eye destroyed. 16587_ Penetrated by Slug. 16587_ Micro-nuke Launcher destroyed. 16588_ Penetrated by Slug. 16588_ P-80 Master destroyed. 16588_ Micro-nuke Launcher destroyed. 16590_ U-05 Engineer lays Concrete. 16590_ U-05 Engineer destroyed. 16591_ Penetrated by Slug. 16591_ U-05 Engineer lays Concrete. Map ----- +----------------------------------------------------+ | ?????????????????????????????????????????????????? | | ????????????????????????????????????>????????????? | | ?????????????????????????????????????????????????? | | ?????????????????????????????????????????????????? | | ?????????????????????????????????????????????????? | | ???####??????????????????????????????????????????? | | ??"""""#?????????????????????????????????????????? | | ?""S"""#?????????????????????????????????????????? | | # """#####?????????????????????????????????????? | | #????????????????????????????????????? | | #???????????????????????????????? ???? | | """ """?????????????????????????????????? ?? | | """ """????????###########??????????????? "? | | """ ""?????????# #??????????????? "" | | ?????????# !!=#??????????????? | | ? ??????????# != #??????????????? " | | ? " " "??????????# != #??????????????? "%" | | ??"G" "??????????# #??????????????? " | | ??""" "??????????# #??????????????# | | ??? ??????????? = ??????????????## #? | | ??? ????????????? ?????????????? #? | | ####+##################/#############+ #? | | h h w * %= #? | | p !=%su u [ #? | | *%k| g % #? | | Y @ hk #? | | ##########+##########################/######+##### | | #???? ]????????????????????# ] # | | #??# #??????????????????# # | | #??# =#??????????????????# """" # | | #??# * #??????????????????# """" # "" "" | | #??# #??????????????????# """" # ""T"" | | #??# #??????????????????# """" # """ | | #??# #??????????????????# " # ! | | #??# * #??????????????????# =# | | #??# #??????????????????# ?? ! ######## | | #??#! #??????????????????##?????###??????? | | #??# #??????????????????????????????????? | | #??# #???????????????>??????????????????? | | ##+#??# #??????????????????????????????????? | | ?# #??# #??????????????????????????????????? | | ?# #???? ????????????????????????????????????? | | ?# #?????????????????????????????????????????????? | | ?# #?????????????????????????????????????????????? | | ?# #?????????????????????